fUSD/lending_fUSD_20251130
["ID","MTS","AMOUNT","RATE_DAILY","PERIOD"]
[395170711,1764507038458,-499.1976,0.00016521,2]
[395170712,1764507038469,-10077.41371225,0.00016872,2]
[395170713,1764507038479,-760000.0,0.00016873,2]
[395170714,1764507038489,-1253.74007631,0.00016876,2]
[395170715,1764507038499,-1253.74007631,0.00016888,2]
[395170716,1764507038508,-33399.3792,0.000169,2]
[395170717,1764507038519,-1000.0,0.000169,2]
[395170718,1764507038529,-7391.301,0.000169,2]
[395170719,1764507038540,-3433.31364786,0.000169,2]
[395170720,1764507038550,-1253.74007631,0.000169,2]
[395170721,1764507038560,-201.41866534,0.000169,2]
[395170722,1764507038570,-411.39562188,0.000169,2]
[395170723,1764507038580,-339.01525842,0.000169,2]
[395170724,1764507038590,-1246.1397536,0.000169,2]
[395170725,1764507038600,-500.0,0.000169,2]
[395170726,1764507038610,-500.0,0.000169,2]
[395170727,1764507038620,-500.0,0.000169,2]
[395170728,1764507038631,-500.0,0.000169,2]
[395170729,1764507038640,-500.0,0.000169,2]
[395170730,1764507038650,-500.0,0.000169,2]
[395170731,1764507038660,-500.0,0.000169,2]
[395170732,1764507038670,-500.0,0.000169,2]
[395170733,1764507038681,-500.0,0.000169,2]
[395170734,1764507038691,-500.0,0.000169,2]
[395170735,1764507038702,-500.0,0.000169,2]
[395170736,1764507038713,-500.0,0.000169,2]
[395170737,1764507038724,-500.0,0.000169,2]
[395170738,1764507038735,-500.0,0.000169,2]
[395170739,1764507038746,-500.0,0.000169,2]
[395170740,1764507038756,-500.0,0.000169,2]
[395170741,1764507038767,-197.92719606,0.000169,2]
[395170742,1764507038778,-4657.0,0.000169,2]
[395170743,1764507038788,-160.11734806,0.00016913,2]
[395170744,1764507038799,-1472.0,0.00016935,2]
[395170745,1764507038810,-500.0,0.00016973,2]
[395170746,1764507038821,-500.0,0.00016973,2]
[395170747,1764507038832,-500.0,0.00016973,2]
[395170748,1764507038843,-507.2295556,0.00016973,2]
[395170749,1764507038854,-339.26563356,0.00016973,2]
[395170750,1764507038864,-162.090508,0.00016973,2]
[395170751,1764507038875,-502.42313954,0.00016973,2]
[395170752,1764507038884,-500.0,0.00016973,2]
[395170753,1764507038894,-500.0,0.00016973,2]
[395170754,1764507038905,-500.38978168,0.00016973,2]
[395170755,1764507038915,-500.75968259,0.00016973,2]
[395170756,1764507038926,-500.0,0.00016973,2]
[395170757,1764507038936,-500.0,0.00016973,2]
[395170758,1764507038947,-366.95471126,0.00016973,2]
[395170759,1764507038958,-500.0,0.00016973,2]
[395170760,1764507038970,-166.09514249,0.00016973,2]
[395170761,1764507038980,-500.0,0.00016973,2]
[395170762,1764507038990,-500.0,0.00016973,2]
[395170763,1764507039001,-500.0,0.00016973,2]
[395170764,1764507039011,-415.54250471,0.00016973,2]
[395170765,1764507039021,-500.0,0.00016973,2]
[395170766,1764507039032,-232.40806133,0.00016973,2]
[395170767,1764507039042,-500.0,0.00016973,2]
[395170768,1764507039053,-500.0,0.00016973,2]
[395170769,1764507039063,-500.0,0.00016973,2]
[395170770,1764507039072,-200.00768026,0.00016973,2]
[395170771,1764507039083,-500.0,0.00016973,2]
[395170772,1764507039093,-500.0,0.00016973,2]
[395170773,1764507039103,-500.0,0.00016973,2]
[395170774,1764507039113,-500.0,0.00016973,2]
[395170775,1764507039123,-500.0,0.00016973,2]
[395170776,1764507039133,-500.0,0.00016973,2]
[395170779,1764507040026,-500.0,0.00016973,2]
[395170780,1764507040061,-500.0,0.00016973,2]
[395170781,1764507040072,-172.99922432,0.00016973,2]
[395170782,1764507040081,-500.0,0.00016973,2]
[395170783,1764507040090,-500.0,0.00016973,2]
[395170784,1764507040099,-505.47277289,0.00016983,2]
[395170785,1764507040108,-1347.0,0.00016986,2]
[395170786,1764507040117,-156.0,0.0001699,2]
[395170787,1764507040126,-156.0,0.0001699,2]
[395170788,1764507040135,-164.38079063,0.0001699,2]
[395170789,1764507040144,-164.38079063,0.0001699,2]
[395170790,1764507040153,-164.38079063,0.0001699,2]
[395170791,1764507040163,-1000.0,0.00016997,2]
[395170792,1764507040172,-373.73,0.00016998,2]
[395170793,1764507040184,-380.37,0.00016998,2]
[395170794,1764507040193,-8842.2753453,0.00016999,2]
[395170795,1764507040202,-300.0,0.00016999,2]
[395170796,1764507040211,-300.0,0.00016999,2]
[395170797,1764507040221,-118.56532877,0.00017,2]
[395170798,1764507040231,-250.0,0.00017,2]
[395170799,1764507040241,-250.0,0.00017,2]
[395170801,1764507040252,-250.0,0.00017,2]
[395170803,1764507040264,-250.0,0.00017,2]
[395170804,1764507040273,-250.0,0.00017,2]
[395170805,1764507040283,-250.0,0.00017,2]
[395170806,1764507040293,-250.0,0.00017,2]
[395170807,1764507040302,-250.0,0.00017,2]
[395170809,1764507040311,-250.0,0.00017,2]
[395170811,1764507040321,-331.9,0.00017,2]
[395170813,1764507040330,-4177617.21933776,0.00017,2]
[395170821,1764507041318,-987.18610805,0.00017,2]
[395170822,1764507041329,-499.98868071,0.00017,2]
[395170823,1764507041340,-5004.93507344,0.00017,2]
[395170824,1764507041351,-1120.43290127,0.00017,2]
[395170825,1764507041362,-4141.776292,0.00017,2]
[395170826,1764507041373,-619.3089963,0.00017,2]
[395170827,1764507041384,-7477.4,0.00017,2]
[395170828,1764507041414,-437.27305822,0.00017,2]
[395170829,1764507041426,-10992.39539457,0.00017,2]
[395170830,1764507041436,-10507.07940039,0.00017,2]
[395170832,1764507041549,-252.0,0.00015633,2]
[395170833,1764507041559,-1814.3009224,0.00017,2]
[395170834,1764507041572,-78138.48713625,0.00017,2]
[395170835,1764507041583,-465.2420023,0.00017,2]
[395170836,1764507041594,-740.40585613,0.00017,2]
[395170837,1764507041606,-10860.27864207,0.00017,2]
[395170838,1764507041617,-359843.55618603,0.00017,2]
[395170839,1764507041628,-4314.1106964,0.00017,2]
[395170844,1764507043429,-530.20267387,0.00014929,2]
[395170845,1764507043440,-1272.20721677,0.00014929,2]
[395170846,1764507043530,-1553.10985167,0.00014929,2]
[395170847,1764507043540,-1640.69627758,0.00014929,2]
[395170848,1764507043551,-896.70793999,0.00014929,2]
[395170849,1764507043561,-856.98028143,0.00014929,2]
[395170850,1764507043572,-646.88384498,0.00014929,2]
[395170851,1764507043583,-440.00261981,0.00014929,2]
[395170859,1764507046533,-782.51237315,0.00014929,2]
[395170860,1764507046544,-586.85151911,0.00014929,2]
[395171136,1764508231925,-200.0,0.00013383,2]
[395171140,1764508231934,-250.0,0.00013416,2]
[395171142,1764508231943,-999.0,0.00013448,3]
[395171144,1764508231953,-250.0,0.00013556,2]
[395171146,1764508231962,-217.77748147,0.00013592,2]
[395171148,1764508231971,-1142.43108252,0.00013667,2]
[395171150,1764508231986,-803.67,0.00013667,2]
[395171153,1764508231997,-804.89891748,0.00013667,2]
[395171155,1764508232006,-84.35413418,0.00013691,2]
[395171157,1764508232022,-1115.64586582,0.00013691,2]
[395171159,1764508232031,-4575.69,0.00013692,2]
[395171161,1764508232040,-300.0,0.00013697,2]
[395171163,1764508232050,-166.66,0.00013699,2]
[395171165,1764508232059,-891.91,0.00013699,2]
[395171168,1764508232073,-1600.0,0.0001371,2]
[395171170,1764508232082,-2453.03,0.0001384,2]
[395171172,1764508232094,-150.0,0.000139,2]
[395171174,1764508232104,-150.99,0.00013904,2]
[395171176,1764508232113,-150.99,0.00013904,2]
[395171177,1764508232123,-9999.99,0.00013904,2]
[395171178,1764508232133,-487.06,0.00013929,2]
[395171179,1764508232143,-166.66,0.00013947,2]
[395171180,1764508232152,-765.84201128,0.00014067,2]
[395171181,1764508232162,-166.66,0.00014196,2]
[395171182,1764508232173,-1000.0,0.00014282,2]
[395171183,1764508232182,-166.66,0.00014444,2]
[395171184,1764508232191,-3987.27910654,0.00014627,2]
[395171185,1764508232203,-2376.54089346,0.00014627,2]
[395171186,1764508232213,-167.58,0.00014627,2]
[395171187,1764508232222,-1072.8467927,0.0001463,2]
[395171188,1764508232231,-1015.5482416,0.0001463,2]
[395171189,1764508232241,-1548.04117647,0.0001463,2]
[395171190,1764508232250,-257.55206601,0.00014663,2]
[395171191,1764508232259,-166.66,0.00014693,2]
[395171192,1764508232268,-195.0,0.00014721,2]
[395171193,1764508232277,-195.0,0.00014721,2]
[395171194,1764508232286,-250.0,0.00014721,2]
[395171195,1764508232297,-5808.80719166,0.00014739,2]
[395171196,1764508232306,-182.65,0.00014742,2]
[395171197,1764508232315,-195.0,0.00014793,2]
[395171198,1764508232325,-200.0,0.00014827,2]
[395171199,1764508232334,-237.11150689,0.00014827,2]
[395171200,1764508232343,-181.43948669,0.00014827,2]
[395171201,1764508232353,-500.0,0.00014827,2]
[395171202,1764508232362,-507.84354117,0.00014827,2]
[395171203,1764508232372,-8550.96,0.00014828,2]
[395171204,1764508232381,-3390.9239,0.00014829,2]
[395171205,1764508232390,-1287.0228,0.00014829,2]
[395171206,1764508232399,-235.2993,0.00014829,2]
[395171207,1764508232409,-280.8511,0.00014829,2]
[395171208,1764508232417,-86100.82312572,0.00014829,2]
[395171209,1764508232429,-10825.16149129,0.00014829,2]
[395171212,1764508237627,-1097.66,0.00014819,2]
[395171213,1764508237636,-1097.66,0.00014819,2]
[395171214,1764508237646,-663074.01538299,0.00014829,2]
[395171215,1764508237655,-524.68028071,0.00014839,2]
[395171216,1764508237664,-195.0,0.00014938,2]
[395171217,1764508237674,-166.66,0.00014941,2]
[395171218,1764508237683,-18136.21454933,0.00014951,2]
[395171219,1764508237693,-5808.80719162,0.00014979,2]
[395171220,1764508237702,-420.0,0.0001501,2]
[395171221,1764508237711,-255.0,0.00015012,2]
[395171222,1764508237721,-1680.0,0.0001506,2]
[395171223,1764508237731,-5808.80719162,0.00015219,2]
[395171224,1764508237740,-334.5472959,0.0001534,2]
[395171225,1764508237750,-500.0,0.0001534,2]
[395171226,1764508237759,-578.20924308,0.0001534,2]
[395171227,1764508237769,-500.0,0.0001534,2]
[395171228,1764508237778,-500.0,0.0001534,2]
[395171229,1764508237788,-553.64373807,0.0001534,2]
[395171230,1764508237797,-151.0,0.0001534,2]
[395171231,1764508237807,-1000.0,0.0001534,2]
[395171232,1764508237817,-1000.0,0.0001534,2]
[395171233,1764508237826,-1000.0,0.0001534,2]
[395171234,1764508237835,-1000.0,0.0001534,2]
[395171235,1764508237844,-1000.0,0.0001534,2]
[395171236,1764508237854,-1000.0,0.0001534,2]
[395171237,1764508237863,-1000.0,0.0001534,2]
[395171238,1764508237873,-1000.0,0.0001534,2]
[395171239,1764508237882,-1000.0,0.0001534,2]
[395171240,1764508237891,-257.91778498,0.0001534,2]
[395171242,1764508237901,-1000.0,0.0001534,2]
[395171243,1764508237910,-1000.0,0.0001534,2]
[395171244,1764508237918,-1000.0,0.0001534,2]
[395171245,1764508237927,-1000.0,0.0001534,2]
[395171246,1764508237936,-1000.0,0.0001534,2]
[395171247,1764508237945,-1000.0,0.0001534,2]
[395171248,1764508237954,-1000.0,0.0001534,2]
[395171250,1764508237963,-357.53456067,0.0001534,2]
[395171252,1764508237972,-33399.3792,0.00015423,2]
[395171254,1764508237981,-1600.0,0.00015424,2]
[395171258,1764508238000,-5808.80719162,0.00015459,2]
[395171260,1764508238010,-1000.0,0.00015533,2]
[395171262,1764508238020,-500.0,0.00015544,2]
[395171263,1764508238030,-150.0,0.00015633,2]
[395171265,1764508238039,-150.0,0.00015633,2]
[395171267,1764508238049,-150.0,0.00015633,2]
[395171268,1764508238059,-150.0,0.00015633,2]
[395171269,1764508238070,-150.0,0.00015633,2]
[395171270,1764508238080,-1603.0,0.00015633,2]
[395171271,1764508238091,-610.0,0.00015633,2]
[395171272,1764508238102,-1321.0,0.00015633,2]
[395171273,1764508238112,-3442.0,0.00015633,2]
[395171274,1764508238122,-1258.0,0.00015633,2]
[395171275,1764508238133,-640.0,0.00015633,2]
[395171276,1764508238142,-1193.0,0.00015633,2]
[395171277,1764508238153,-909.0,0.00015633,2]
[395171278,1764508238162,-252.0,0.00015633,2]
[395171279,1764508238174,-562.0,0.00015633,2]
[395171280,1764508238184,-2718.0,0.00015633,2]
[395171281,1764508238194,-5808.80719162,0.00015699,2]
[395171282,1764508238203,-166.67,0.00015812,2]
[395171283,1764508238214,-167.58,0.00015846,2]
[395171284,1764508238223,-980.94379846,0.000159,2]
[395171285,1764508238233,-980.94379843,0.000159,2]
[395171286,1764508238243,-980.94379843,0.000159,2]
[395171287,1764508238253,-980.94379843,0.000159,2]
[395171288,1764508238262,-980.94379843,0.000159,2]
[395171289,1764508238272,-980.94379843,0.000159,2]
[395171290,1764508238282,-5808.80719162,0.0001594,2]
[395171291,1764508238291,-500.0,0.00015973,2]
[395171292,1764508238301,-161.07388452,0.00015973,2]
[395171293,1764508238312,-500.65013658,0.00015973,2]
[395171294,1764508238322,-500.0,0.00015973,2]
[395171295,1764508238332,-207.48162006,0.00015973,2]
[395171296,1764508238342,-500.0,0.00015973,2]
[395171297,1764508238356,-500.0,0.00015973,2]
[395171298,1764508238366,-500.0,0.00015973,2]
[395171299,1764508238376,-500.0,0.00015973,2]
[395171300,1764508238386,-500.0,0.00015973,2]
[395171301,1764508238396,-500.0,0.00015973,2]
[395171302,1764508238406,-500.21383285,0.00015973,2]
[395171303,1764508238415,-500.0,0.00015973,2]
[395171304,1764508238425,-500.0,0.00015973,2]
[395171305,1764508238436,-500.0,0.00015973,2]
[395171306,1764508238447,-500.0,0.00015973,2]
[395171307,1764508238457,-316.03350375,0.00015973,2]
[395171308,1764508238467,-500.0,0.00015973,2]
[395171309,1764508238477,-500.0,0.00015973,2]
[395171310,1764508238486,-160.07187961,0.00015973,2]
[395171311,1764508238496,-2570.22027825,0.00015985,2]
[395171312,1764508238506,-1000.0,0.00016068,2]
[395171313,1764508238516,-5808.80719162,0.0001618,2]
[395171314,1764508238526,-552.02,0.00016192,2]
[395171315,1764508238535,-552.02,0.00016192,2]
[395171316,1764508238545,-552.02,0.00016192,2]
[395171317,1764508238555,-177.88,0.00016192,2]
[395171318,1764508238565,-552.02,0.00016192,2]
[395171319,1764508238575,-177.88,0.00016192,2]
[395171320,1764508238585,-552.02,0.00016192,2]
[395171321,1764508238594,-177.88,0.00016192,2]
[395171322,1764508238605,-552.02,0.00016192,2]
[395171323,1764508238614,-433.0,0.00016208,2]
[395171324,1764508238624,-2570.22027825,0.00016214,2]
[395171325,1764508238634,-5808.80719162,0.0001642,2]
[395171326,1764508238643,-13520.3,0.00016438,2]
[395171327,1764508238653,-772.98303428,0.00016438,2]
[395171328,1764508238662,-2570.22027825,0.00016442,2]
[395171329,1764508238672,-1072.21727013,0.0001647,2]
[395171330,1764508238682,-505.74952757,0.00016521,2]
[395171331,1764508238691,-1000.0,0.00016521,2]
[395171332,1764508238705,-1000.0,0.00016521,2]
[395171333,1764508238715,-1000.0,0.00016521,2]
[395171334,1764508238725,-1000.0,0.00016521,2]
[395171335,1764508238734,-1000.0,0.00016521,2]
[395171336,1764508238744,-1000.0,0.00016521,2]
[395171337,1764508238753,-1000.0,0.00016521,2]
[395171338,1764508238763,-171.51045652,0.0001656,2]
[395171339,1764508238773,-2351.0,0.00016566,2]
[395171340,1764508238783,-252.49293818,0.00016611,2]
[395171341,1764508238793,-5808.80719162,0.0001666,2]
[395171342,1764508238803,-1036.28587389,0.0001666,2]
[395171343,1764508238813,-1035.29146064,0.0001666,2]
[395171344,1764508238822,-1138.98509835,0.0001666,2]
[395171345,1764508238832,-1135.52364851,0.0001666,2]
[395171346,1764508238842,-1047.16174978,0.0001666,2]
[395171347,1764508238852,-1018.50759536,0.0001666,2]
[395171348,1764508238862,-1048.71878216,0.0001666,2]
[395171349,1764508238871,-1041.39911171,0.0001666,2]
[395171350,1764508238881,-3622.678,0.0001666,2]
[395171351,1764508238891,-193.205,0.0001666,2]
[395171352,1764508238904,-2570.22027825,0.00016671,2]
[395171353,1764508238914,-2348.0,0.00016696,2]
[395171354,1764508238924,-346.92554585,0.00016709,2]
[395171355,1764508238934,-267.46074303,0.00016709,2]
[395171356,1764508238944,-7391.301,0.00016773,2]
[395171357,1764508238954,-1400.97258954,0.00016794,2]
[395171358,1764508238964,-17526.55930496,0.0001683,2]
[395171359,1764508238974,-160.11734806,0.0001686,2]
[395171360,1764508238984,-200.0,0.00016864,2]
[395171361,1764508238994,-2570.22027825,0.000169,2]
[395171362,1764508239004,-796.00312092,0.000169,2]
[395171363,1764508239014,-339.01525842,0.000169,2]
[395171364,1764508239024,-411.39562188,0.000169,2]
[395171365,1764508239035,-5808.80719162,0.000169,2]
[395171366,1764508239045,-1038.44979467,0.000169,2]
[395171367,1764508239055,-5823.0,0.000169,2]
[395171368,1764508239065,-2348.0,0.00016914,2]
[395171369,1764508239075,-1347.0,0.00016959,2]
[395171370,1764508239087,-339.26563356,0.00016973,2]
[395171371,1764508239097,-162.090508,0.00016973,2]
[395171372,1764508239107,-502.42313954,0.00016973,2]
[395171373,1764508239117,-500.0,0.00016973,2]
[395171374,1764508239127,-507.2295556,0.00016973,2]
[395171375,1764508239137,-500.0,0.00016973,2]
[395171376,1764508239148,-166.09514249,0.00016973,2]
[395171377,1764508239158,-500.0,0.00016973,2]
[395171378,1764508239168,-500.0,0.00016973,2]
[395171379,1764508239178,-500.0,0.00016973,2]
[395171380,1764508239188,-366.95471126,0.00016973,2]
[395171381,1764508239197,-232.40806133,0.00016973,2]
[395171382,1764508239207,-200.00768026,0.00016973,2]
[395171383,1764508239217,-500.75968259,0.00016973,2]
[395171384,1764508239227,-500.0,0.00016973,2]
[395171385,1764508239236,-500.0,0.00016973,2]
[395171386,1764508239246,-500.0,0.00016973,2]
[395171387,1764508239255,-500.0,0.00016973,2]
[395171388,1764508239265,-500.0,0.00016973,2]
[395171389,1764508239275,-500.0,0.00016973,2]
[395171390,1764508239290,-500.838144,0.00016973,2]
[395171391,1764508239300,-500.0,0.00016973,2]
[395171392,1764508239310,-500.0,0.00016973,2]
[395171393,1764508239320,-500.0,0.00016973,2]
[395171394,1764508239330,-500.0,0.00016973,2]
[395171395,1764508239340,-500.0,0.00016973,2]
[395171396,1764508239349,-500.38978168,0.00016973,2]
[395171397,1764508239359,-500.0,0.00016973,2]
[395171398,1764508239369,-500.0,0.00016973,2]
[395171399,1764508239378,-172.99922432,0.00016973,2]
[395171400,1764508239388,-500.0,0.00016973,2]
[395171401,1764508239397,-500.0,0.00016973,2]
[395171402,1764508239408,-500.0,0.00016973,2]
[395171403,1764508239418,-505.47277289,0.00016983,2]
[395171404,1764508239427,-164.38079063,0.00016986,2]
[395171405,1764508239437,-1000.0,0.0001699,2]
[395171406,1764508239446,-164.38079063,0.0001699,2]
[395171408,1764508239456,-164.38079063,0.0001699,2]
[395171410,1764508239466,-310.68826752,0.00016996,2]
[395171411,1764508239475,-2210.5688363,0.00016996,2]
[395171412,1764508239485,-260042.2826498,0.00016996,2]
[395171413,1764508239494,-6631.706509,0.00016996,2]
[395171414,1764508239504,-28057.2525706,0.00016996,2]
[395171415,1764508239514,-1330.036123,0.00016996,2]
[395171416,1764508239523,-300.0,0.00016999,2]
[395171417,1764508239533,-300.0,0.00016999,2]
[395171418,1764508239543,-2610319.49541207,0.00017,2]
[395171419,1764508239553,-2409599.05457441,0.00017,2]
[395171420,1764508239571,-45785.26743357,0.00017,2]
[395171421,1764508239847,-500.0,0.000139,2]
[395171422,1764508239857,-500.0,0.000139,2]
[395171423,1764508239867,-500.0,0.000139,2]
[395171424,1764508239876,-500.0,0.000139,2]
[395171425,1764508239887,-500.0,0.000139,2]
[395171426,1764508239897,-500.0,0.000139,2]
[395171427,1764508239908,-500.0,0.000139,2]
[395171428,1764508239918,-500.0,0.000139,2]
[395171429,1764508239928,-375.87708348,0.00016438,2]
[395171430,1764508239963,-276.63960969,0.000139,2]
[395171431,1764508239975,-223.36039031,0.000139,2]
[395171432,1764508239985,-124.12291652,0.00016438,2]
[395171433,1764508239995,-500.0,0.00016438,2]
[395171434,1764508240005,-578.09618719,0.00016438,2]
[395171435,1764508240015,-1992292.72564104,0.00017,2]
[395171437,1764508240025,-156.0,0.00017,2]
[395171439,1764508240035,-156.0,0.00017,2]
[395171440,1764508240044,-157.0,0.00017,2]
[395171441,1764508240055,-157.91,0.00017,3]
[395171442,1764508240064,-250.0,0.00017,2]
[395171443,1764508240074,-2000.0,0.00017,2]
[395171444,1764508240083,-200.0,0.00017,2]
[395171445,1764508240096,-190.538506,0.00017,2]
[395171446,1764508240106,-151.0,0.00017,2]
[395171447,1764508240115,-160.606722,0.00017,2]
[395171448,1764508240125,-153.268168,0.00017,2]
[395171449,1764508240135,-151.667451,0.00017,2]
[395171450,1764508240144,-166.010333,0.00017,2]
[395171451,1764508240154,-151.0,0.00017,2]
[395171452,1764508240164,-152.033392,0.00017,2]
[395171453,1764508240175,-150.0,0.00017,2]
[395171454,1764508240184,-156.75181041,0.00017,2]
[395171455,1764508240194,-150.0,0.00017,2]
[395171456,1764508240204,-150.0,0.00017,2]
[395171457,1764508240214,-150.0,0.00017,2]
[395171458,1764508240224,-150.0,0.00017,2]
[395171459,1764508240233,-1792.10574,0.00017,2]
[395171460,1764508240243,-150.0,0.00017,2]
[395171461,1764508240253,-150.0,0.00017,2]
[395171462,1764508240262,-150.0,0.00017,2]
[395171463,1764508240272,-150.0,0.00017,2]
[395171464,1764508240281,-150.0,0.00017,2]
[395171465,1764508240291,-151.0,0.00017,2]
[395171467,1764508240300,-151.0,0.00017,2]
[395171468,1764508240310,-151.0,0.00017,2]
[395171469,1764508240318,-150.0,0.00017,2]
[395171470,1764508240328,-255.07516903,0.00017,2]
[395171471,1764508240337,-150.0,0.00017,2]
[395171472,1764508240346,-150.0,0.00017,2]
[395171473,1764508240355,-150.0,0.00017,2]
[395171474,1764508240364,-150.0,0.00017,2]
[395171475,1764508240373,-500.0,0.00017,2]
[395171476,1764508240382,-151.0,0.00017,2]
[395171477,1764508240391,-151.0,0.00017,2]
[395171478,1764508240400,-151.0,0.00017,2]
[395171479,1764508240412,-151.0,0.00017,2]
[395171480,1764508240421,-151.0,0.00017,2]
[395171481,1764508240431,-151.0,0.00017,2]
[395171482,1764508240440,-151.0,0.00017,2]
[395171483,1764508240449,-552.02,0.00017014,2]
[395171484,1764508240458,-552.02,0.00017014,2]
[395171485,1764508240467,-175.72,0.00017014,2]
[395171486,1764508240476,-172.78,0.00017033,2]
[395171487,1764508240485,-167.58,0.00017065,2]
[395171488,1764508240494,-1500.0,0.00017068,2]
[395171489,1764508240503,-1500.0,0.00017068,2]
[395171490,1764508240513,-190.81942377,0.00017068,2]
[395171491,1764508240522,-1500.0,0.00017068,2]
[395171492,1764508240531,-1500.0,0.00017068,2]
[395171494,1764508240540,-1500.0,0.00017068,2]
[395171495,1764508240550,-1500.0,0.00017068,2]
[395171496,1764508240560,-2523.0,0.00017113,2]
[395171498,1764508240570,-1472.0,0.00017128,2]
[395171499,1764508240580,-150.0,0.00017137,2]
[395171501,1764508240590,-150.0,0.00017137,2]
[395171502,1764508240599,-150.0,0.00017137,2]
[395171503,1764508240609,-150.0,0.00017137,2]
[395171505,1764508240618,-150.0,0.00017137,2]
[395171506,1764508240628,-150.0,0.00017137,2]
[395171507,1764508240637,-150.0,0.00017137,2]
[395171509,1764508240647,-150.0,0.00017137,2]
[395171510,1764508240656,-150.0,0.00017137,2]
[395171511,1764508240666,-150.0,0.00017137,2]
[395171513,1764508240675,-150.0,0.00017137,2]
[395171514,1764508240685,-150.0,0.00017137,2]
[395171516,1764508240695,-500.0,0.00017137,2]
[395171517,1764508240704,-1600.0,0.00017138,2]
[395171518,1764508240714,-2523.0,0.00017155,2]
[395171520,1764508240723,-2523.0,0.00017167,2]
[395171521,1764508240732,-200.0,0.0001717,2]
[395171522,1764508240741,-200.0,0.00017174,2]
[395171524,1764508240750,-2523.0,0.00017234,2]
[395171525,1764508240760,-150.0,0.00017274,2]
[395171527,1764508240769,-200.0,0.00017274,2]
[395171528,1764508240778,-200.0,0.00017274,2]
[395171529,1764508240787,-150.0,0.00017274,2]
[395171531,1764508240796,-200.0,0.00017274,2]
[395171532,1764508240807,-200.0,0.00017274,2]
[395171533,1764508240817,-161.0,0.00017274,2]
[395171535,1764508240829,-200.0,0.00017274,2]
[395171536,1764508240838,-200.0,0.00017274,2]
[395171538,1764508240847,-200.0,0.00017274,2]
[395171539,1764508240856,-200.0,0.00017274,2]
[395171540,1764508240866,-200.0,0.00017274,2]
[395171542,1764508240875,-500.0,0.00017274,2]
[395171543,1764508240884,-1472.0,0.00017379,2]
[395171544,1764508240895,-1472.0,0.00017399,2]
[395171546,1764508240904,-150.0,0.00017411,2]
[395171547,1764508240913,-279.0,0.00017411,2]
[395171548,1764508240922,-500.0,0.00017411,2]
[395171550,1764508240932,-2348.0,0.00017428,2]
[395171551,1764508240942,-373.73,0.00017461,2]
[395171553,1764508240952,-380.37,0.00017461,2]
[395171554,1764508240962,-217.21258986,0.00017465,2]
[395171555,1764508240971,-2523.0,0.00017466,2]
[395171557,1764508240981,-2523.0,0.00017479,2]
[395171558,1764508240990,-2348.0,0.00017489,2]
[395171560,1764508241000,-736.0,0.00017514,2]
[395171561,1764508241010,-1000.0,0.00017521,2]
[395171562,1764508241020,-1000.0,0.00017521,2]
[395171563,1764508241029,-616.40948711,0.00017521,2]
[395171564,1764508241039,-1000.0,0.00017521,2]
[395171565,1764508241048,-1000.0,0.00017521,2]
[395171566,1764508241058,-508.48113528,0.00017521,2]
[395171567,1764508241067,-1000.0,0.00017521,2]
[395171568,1764508241076,-1000.0,0.00017521,2]
[395171569,1764508241085,-1000.0,0.00017521,2]
[395171570,1764508241095,-1000.0,0.00017521,2]